bitfinex/quotes_BTCUSD_20250814
["timestamp","ask_amount","ask_price","bid_price","bid_amount"]
[1755207612301,1.0717719,117570.0,117560.0,0.00149065]
[1755207612511,1.15659314,117570.0,117560.0,0.00149065]
[1755207613343,1.18104741,117570.0,117560.0,0.00149065]
[1755207614233,1.20543278,117570.0,117560.0,0.00049065]
[1755207614431,1.21143278,117570.0,117560.0,0.00149065]
[1755207614878,1.21443278,117570.0,117560.0,0.00149065]
[1755207615128,1.22326897,117570.0,117560.0,0.00149065]
[1755207616473,1.1988836,117570.0,117560.0,0.00149065]
[1755207619717,0.52033317,117570.0,117560.0,0.00149065]
[1755207619944,1.1988836,117570.0,117560.0,0.00149065]
[1755207620156,1.1988836,117570.0,117560.0,0.17161654]
[1755207620360,0.52033317,117570.0,117560.0,0.17161654]
[1755207620546,1.1988836,117570.0,117560.0,0.17161654]
[1755207620967,1.1988836,117570.0,117560.0,0.00149065]
[1755207621340,1.1988836,117570.0,117560.0,0.17161654]
[1755207622380,1.1988836,117570.0,117560.0,0.00149065]
[1755207622601,1.19935051,117570.0,117560.0,0.00149065]
[1755207622816,1.22380478,117570.0,117560.0,0.00149065]
[1755207625510,1.29146664,117570.0,117560.0,0.00149065]
[1755207625719,6.63928015,117570.0,117560.0,0.00149065]
[1755207625936,1.80550079,117560.0,117550.0,0.0175]
[1755207626155,7.15279893,117560.0,117550.0,0.01764707]
[1755207626369,7.17433819,117560.0,117550.0,0.01764707]
[1755207626587,7.25915224,117560.0,117550.0,0.01764707]
[1755207626803,7.26499977,117560.0,117550.0,0.01764707]
[1755207627499,7.31608977,117560.0,117550.0,0.01764707]
[1755207627713,7.31908977,117560.0,117550.0,0.01764707]
[1755207627928,7.26799977,117560.0,117550.0,0.01764707]
[1755207628370,7.27299977,117560.0,117550.0,0.01864707]
[1755207629092,7.4528944,117560.0,117550.0,0.01864707]
[1755207629355,7.45290223,117560.0,117550.0,0.01864707]
[1755207629573,7.46071811,117560.0,117550.0,0.01864707]
[1755207630661,7.48628911,117560.0,117550.0,0.01864707]
[1755207631927,6.80773868,117560.0,117550.0,0.01864707]
[1755207632114,7.48628911,117560.0,117550.0,0.01864707]
[1755207632867,7.92738911,117560.0,117550.0,0.01864707]
[1755207633308,7.94544266,117560.0,117550.0,0.01864707]
[1755207634590,7.97044266,117560.0,117550.0,0.01864707]
[1755207634802,8.45087207,117560.0,117550.0,0.01864707]
[1755207635120,8.42577315,117560.0,117550.0,0.00843026]
[1755207635294,8.44846312,117560.0,117550.0,0.00843026]
[1755207635501,8.47346312,117560.0,117550.0,0.00843026]
[1755207636317,8.50371641,117560.0,117550.0,0.00843026]
[1755207637578,8.50310178,117560.0,117550.0,0.00843026]
[1755207637811,8.57919178,117560.0,117550.0,0.00843026]
[1755207638663,3.57919178,117560.0,117550.0,0.00843026]
[1755207638887,2.42021194,117560.0,117550.0,0.00843026]
[1755207639105,3.55419178,117560.0,117550.0,0.00843026]
[1755207639307,3.57919178,117560.0,117550.0,0.00843026]
[1755207639515,8.57919178,117560.0,117550.0,0.00843026]
[1755207639720,8.55650181,117560.0,117550.0,0.00843026]
[1755207640115,8.53150181,117560.0,117550.0,0.00843026]
[1755207640292,8.55650181,117560.0,117550.0,0.00843026]
[1755207640504,8.55350181,117560.0,117550.0,0.00843026]
[1755207640712,8.55550181,117560.0,117550.0,0.00843026]
[1755207640917,7.39652197,117560.0,117550.0,0.00843026]
[1755207641126,8.55550181,117560.0,117550.0,0.00843026]
[1755207641367,8.55050181,117560.0,117550.0,0.00743026]
[1755207641754,8.55450181,117560.0,117550.0,0.00843026]
[1755207641966,8.52950181,117560.0,117550.0,0.00843026]
[1755207642332,8.55450181,117560.0,117550.0,0.00843026]
[1755207642785,9.25450181,117560.0,117550.0,0.00843026]
[1755207643566,9.27488157,117560.0,117550.0,0.00843026]
[1755207643778,9.29988157,117560.0,117550.0,0.00843026]
[1755207644419,8.59988157,117560.0,117550.0,0.00843026]
[1755207645078,8.57488157,117560.0,117550.0,0.00843026]
[1755207645297,0.72015484,117540.0,117530.0,0.02301]
[1755207645521,1.7675929,117540.0,117530.0,0.02509356]
[1755207646163,1.22669153,117540.0,117530.0,0.02509356]
[1755207646385,1.80618145,117540.0,117530.0,0.02509356]
[1755207646621,1.81616084,117540.0,117530.0,0.02509356]
[1755207646806,1.83491831,117540.0,117530.0,0.02609356]
[1755207647038,1.83591831,117540.0,117530.0,0.02609356]
[1755207647557,1.25642839,117540.0,117530.0,0.02609356]
[1755207647774,1.83591831,117540.0,117530.0,0.02609356]
[1755207648651,0.72018379,117520.0,117510.0,0.13006573]
[1755207648859,1.06232556,117520.0,117510.0,0.13006573]
[1755207649070,1.64181548,117520.0,117510.0,0.13206573]
[1755207649279,1.64969963,117520.0,117510.0,0.13206573]
[1755207649923,1.64969963,117520.0,117510.0,0.13506573]
[1755207649924,1.48151584,117520.0,117510.0,0.13506573]
[1755207650550,1.65169963,117520.0,117510.0,0.13506573]
[1755207650767,1.65169963,117520.0,117510.0,0.06910387]
[1755207651215,1.07220971,117520.0,117510.0,0.06910387]
[1755207651438,0.90202592,117520.0,117510.0,0.06910387]
[1755207651651,1.48151584,117520.0,117510.0,0.06910387]
[1755207652960,1.66914865,117520.0,117510.0,0.05889396]
[1755207653414,1.66914865,117520.0,117510.0,0.06059396]
[1755207653928,0.92136971,117520.0,117510.0,0.06059396]
[1755207654149,0.57446648,117520.0,117510.0,0.67503388]
[1755207654389,0.00014767,117540.0,117530.0,0.17016931]
[1755207654623,0.28496172,117540.0,117530.0,0.20881931]
[1755207654863,0.49879017,117540.0,117530.0,0.78830923]
[1755207655374,0.63576172,117540.0,117530.0,0.20881931]
[1755207655816,1e-08,117540.0,117530.0,1.12930923]
[1755207656030,0.3578988,117570.0,117560.0,0.17012589]
[1755207656232,0.90836783,117570.0,117560.0,0.20877589]
[1755207656452,0.90244373,117570.0,117560.0,0.20877589]
[1755207656659,0.50244373,117570.0,117560.0,0.20877589]
[1755207657292,0.50244373,117570.0,117560.0,0.78826581]
[1755207657293,0.19271285,117570.0,117560.0,0.78826581]
[1755207657501,0.34347285,117570.0,117560.0,0.78826581]
[1755207657708,0.24347285,117570.0,117560.0,0.78826581]
[1755207658178,0.23557405,117570.0,117560.0,0.78826581]
[1755207658592,0.23957405,117570.0,117560.0,0.78926581]
[1755207658805,0.24057405,117570.0,117560.0,0.20877589]
[1755207659028,0.15576,117570.0,117560.0,0.20877589]
[1755207659241,0.15787004,117590.0,117580.0,0.17009695]
[1755207659465,0.18496199,117590.0,117580.0,0.20874695]
[1755207659703,0.25090794,117590.0,117580.0,0.88685426]
[1755207659912,0.15090794,117590.0,117580.0,0.88685426]
[1755207660336,0.15090794,117590.0,117580.0,0.20874695]
[1755207660592,0.18822185,117590.0,117580.0,0.88685426]
[1755207660798,0.00114794,117590.0,117580.0,0.88685426]
[1755207661009,0.15186794,117590.0,117580.0,0.88685426]
[1755207661218,0.00114794,117590.0,117580.0,0.88685426]
[1755207661442,0.15186794,117590.0,117580.0,0.88685426]
[1755207661649,0.15186794,117590.0,117580.0,0.88985426]
[1755207661889,0.15086794,117590.0,117580.0,0.88685426]
[1755207662104,0.15186794,117590.0,117580.0,0.89285426]
[1755207664107,0.00114794,117590.0,117580.0,0.21474695]
[1755207664322,0.15182794,117590.0,117580.0,0.89285426]
[1755207665970,0.00114794,117590.0,117580.0,0.89285426]
[1755207666171,0.15178794,117590.0,117580.0,0.89285426]
[1755207666581,0.00114794,117590.0,117580.0,0.89285426]
[1755207666792,0.15178794,117590.0,117580.0,0.21474695]
[1755207666999,0.15178794,117590.0,117580.0,0.89285426]
[1755207667724,0.00114794,117590.0,117580.0,0.89285426]
[1755207667942,0.15178794,117590.0,117580.0,0.89285426]
[1755207668818,0.00114794,117590.0,117580.0,0.89285426]
[1755207669033,0.15174794,117590.0,117580.0,0.89285426]
[1755207670338,0.15174794,117590.0,117580.0,0.21474695]
[1755207670568,0.15174794,117590.0,117580.0,0.89285426]
[1755207671224,0.15174794,117590.0,117580.0,0.21474695]
[1755207671431,0.15174794,117590.0,117580.0,0.89285426]
[1755207672069,0.15174794,117590.0,117580.0,0.85790426]
[1755207672342,0.15174794,117590.0,117580.0,0.85620426]
[1755207672561,0.39164199,117590.0,117580.0,0.17609695]
[1755207672779,0.39164199,117590.0,117580.0,0.006]
[1755207672780,0.56172448,117590.0,117580.0,0.006]
[1755207672992,1.54630205,117590.0,117580.0,0.00275]
[1755207673197,1.64630205,117590.0,117580.0,0.00275]
[1755207673416,1.64630205,117590.0,117540.0,0.1786384]
[1755207673417,0.72012589,117560.0,117540.0,0.1786384]
[1755207673672,0.23747405,117550.0,117540.0,0.17013066]
[1755207673907,0.23747405,117550.0,117530.0,0.20754189]
[1755207673908,0.2,117540.0,117530.0,0.20754189]
[1755207674134,0.48989405,117540.0,117530.0,0.17016931]
[1755207674358,0.63989405,117540.0,117530.0,0.17016931]
[1755207675028,0.4,117530.0,117520.0,0.17017794]
[1755207675243,0.63751405,117530.0,117520.0,0.17032561]
[1755207675457,0.72527529,117530.0,117520.0,0.17032561]
[1755207676314,0.72527529,117530.0,117520.0,0.17132561]
[1755207676315,0.64045405,117530.0,117520.0,0.17132561]
[1755207676523,0.23747405,117530.0,117520.0,0.17349561]
[1755207676739,0.23533405,117530.0,117520.0,0.17647561]
[1755207676955,0.2,117550.0,117540.0,0.17014223]
[1755207677192,0.35,117560.0,117550.0,0.17014036]
[1755207677394,0.57127162,117560.0,117550.0,0.17231036]
[1755207677613,0.57127162,117560.0,117550.0,0.17529036]
[1755207677614,0.72179162,117560.0,117550.0,0.17529036]
[1755207677839,0.53481405,117560.0,117550.0,0.17529036]
[1755207678061,0.53537405,117560.0,117550.0,0.17529036]
[1755207679328,0.53737405,117560.0,117550.0,0.17629036]
[1755207679888,0.33733405,117560.0,117550.0,0.17629036]
[1755207681572,0.18681405,117560.0,117550.0,0.17629036]
[1755207681793,0.33733405,117560.0,117550.0,0.17629036]
[1755207682017,0.23733405,117560.0,117550.0,0.17629036]
[1755207682679,0.08481405,117560.0,117550.0,0.17529036]
[1755207682899,0.23533405,117560.0,117550.0,0.17529036]
[1755207683335,0.43533405,117560.0,117550.0,0.17529036]
[1755207683549,0.37455259,117580.0,117570.0,0.17011142]
[1755207683756,0.79986749,117580.0,117570.0,0.17011142]
[1755207683960,0.79201635,117580.0,117570.0,0.17011142]
[1755207684166,0.79987151,117580.0,117570.0,0.17011142]
[1755207684616,0.79201635,117580.0,117570.0,0.17011142]
[1755207684836,0.72593684,117580.0,117570.0,0.17011142]
[1755207685070,0.72893684,117580.0,117570.0,0.17111142]
[1755207685298,0.71323455,117580.0,117570.0,0.17111142]
[1755207685946,0.71517455,117580.0,117570.0,0.17111142]
[1755207686163,0.71617455,117580.0,117570.0,0.17111142]
[1755207686414,0.80099579,117580.0,117570.0,0.17111142]
[1755207686632,0.56319455,117580.0,117570.0,0.17328142]
[1755207687485,0.56319455,117580.0,117570.0,0.17228142]
[1755207687486,0.76019455,117580.0,117570.0,0.17228142]
[1755207687957,0.76219455,117580.0,117570.0,0.17328142]
[1755207688391,0.56219455,117580.0,117570.0,0.17328142]
[1755207689367,0.34058196,117580.0,117570.0,0.17328142]
[1755207689994,0.54058196,117580.0,117570.0,0.17328142]
[1755207690454,0.33844196,117580.0,117570.0,0.17626142]
[1755207691042,0.53844196,117580.0,117570.0,0.17626142]
[1755207691589,0.33844196,117580.0,117570.0,0.17626142]
[1755207691818,0.23840196,117580.0,117570.0,0.17626142]
[1755207692920,0.15358791,117580.0,117570.0,0.17626142]
[1755207693573,0.15258791,117580.0,117570.0,0.17626142]
[1755207693787,0.15158791,117580.0,117570.0,0.17526142]
[1755207694008,0.00214791,117580.0,117570.0,0.85436873]
[1755207694245,0.15154791,117580.0,117570.0,0.85436873]
[1755207694692,0.15054791,117580.0,117570.0,0.85336873]
[1755207695055,0.15154791,117580.0,117570.0,0.85436873]
[1755207695255,0.15154791,117580.0,117570.0,0.85536873]
[1755207695491,0.00114791,117580.0,117570.0,0.85536873]
[1755207695714,0.15154791,117580.0,117570.0,0.85536873]
[1755207698890,0.15154791,117580.0,117570.0,0.17726142]
[1755207699089,0.15154791,117580.0,117570.0,0.85536873]
[1755207700200,0.15154791,117580.0,117570.0,0.17726142]
[1755207700432,0.44149196,117580.0,117570.0,0.17211142]
[1755207700654,1.60384542,117580.0,117570.0,0.002]
[1755207700866,1.62745591,117580.0,117570.0,0.002]
[1755207701290,0.9493486,117580.0,117570.0,0.001]
[1755207701494,1.62745591,117580.0,117570.0,0.001]
[1755207702788,0.2,117570.0,117560.0,0.17011324]
[1755207703015,0.37476529,117570.0,117560.0,0.17011324]
[1755207704283,0.37576529,117570.0,117560.0,0.17111324]
[1755207705124,0.56162628,117570.0,117560.0,0.17111324]
[1755207705619,0.39151486,117570.0,117560.0,0.17111324]
[1755207706213,0.39939859,117570.0,117560.0,0.17111324]
[1755207706984,0.56951001,117570.0,117560.0,0.001]
[1755207707199,1.26506634,117570.0,117560.0,0.001]
[1755207707398,1.36506634,117570.0,117560.0,0.001]
[1755207707598,1.37097908,117570.0,117560.0,0.001]
[1755207708673,1.40731908,117570.0,117560.0,0.001]
[1755207709084,0.55,117540.0,117530.0,0.17867777]
[1755207709299,0.87215917,117540.0,117530.0,0.17867777]
[1755207710391,0.8808081,117540.0,117530.0,0.17867777]
[1755207710861,0.8818081,117540.0,117530.0,0.18067777]
[1755207719120,1.05196294,117540.0,117530.0,0.002]
[1755207719562,1.73007025,117540.0,117530.0,0.002]
[1755207719777,1.74751927,117540.0,117530.0,0.002]
[1755207720225,1.86323165,117540.0,117530.0,0.002]
[1755207721834,1.86523165,117540.0,117530.0,0.002]
[1755207722053,1.18712434,117540.0,117530.0,0.002]
[1755207722271,0.55,117510.0,117500.0,0.2463852]
[1755207722488,0.85892314,117510.0,117500.0,0.24850287]
[1755207722705,0.78690405,117510.0,117500.0,0.24850287]
[1755207723733,0.78790405,117510.0,117500.0,0.25050287]
[1755207724164,0.78790405,117510.0,117500.0,0.18284101]
[1755207725268,0.78585405,117510.0,117500.0,0.18597101]
[1755207725482,0.63585405,117510.0,117500.0,0.18597101]
[1755207726839,0.67872092,117510.0,117500.0,0.18597101]
[1755207729400,0.68083092,117510.0,117500.0,0.18597101]
[1755207729618,0.68083092,117510.0,117500.0,0.18087101]
[1755207730909,1.0010292,117510.0,117500.0,0.18087101]
[1755207731130,0.83083092,117510.0,117500.0,0.18087101]
[1755207731980,0.83083092,117510.0,117500.0,0.18293101]
[1755207733315,0.84657065,117510.0,117500.0,0.18293101]
[1755207734392,1.42606524,117510.0,117500.0,0.18087101]
[1755207734615,1.42915524,117510.0,117500.0,0.17236043]
[1755207734831,0.84966065,117510.0,117500.0,0.17236043]
[1755207735054,1.59935352,117510.0,117500.0,0.17236043]
[1755207735277,1.59935352,117510.0,117500.0,0.00214767]
[1755207735707,1.61680254,117510.0,117500.0,0.00214767]
[1755207736134,1.03730795,117510.0,117500.0,0.00214767]
[1755207736352,1.03730795,117510.0,117480.0,0.0315552]
[1755207736353,0.72022725,117490.0,117480.0,0.0315552]
[1755207736611,1.66965057,117490.0,117480.0,0.0315552]
[1755207736832,2.01864507,117490.0,117480.0,0.0315552]
[1755207737069,2.0774085,117490.0,117480.0,0.0315552]
[1755207737351,1.52283509,117490.0,117480.0,0.0315552]
[1755207737567,2.12832507,117490.0,117480.0,0.0315552]
[1755207737803,6.67188245,117490.0,117480.0,0.0315552]
[1755207738029,7.19261361,117490.0,117480.0,0.0315552]
[1755207738274,7.74611281,117490.0,117480.0,0.0315552]
[1755207738520,6.62982355,117490.0,117480.0,0.0325552]
[1755207738772,7.31056156,117490.0,117480.0,0.0315552]
[1755207738991,7.30756156,117490.0,117480.0,0.0315552]
[1755207739213,7.33656156,117490.0,117480.0,0.0325552]
[1755207739436,7.33956156,117490.0,117480.0,0.0325552]
[1755207739673,7.31456156,117490.0,117480.0,0.0325552]
[1755207739902,6.65982355,117490.0,117480.0,0.0325552]
[1755207740150,7.31456156,117490.0,117480.0,0.0325552]
[1755207740380,7.33956156,117490.0,117480.0,0.0325552]
[1755207740828,7.31456156,117490.0,117480.0,0.0325552]
[1755207741108,7.33956156,117490.0,117480.0,0.0325552]
[1755207741324,6.63482355,117490.0,117480.0,0.0325552]
[1755207741550,6.06010237,117490.0,117480.0,0.0325552]
[1755207741781,0.83732618,117490.0,117480.0,0.20784694]
[1755207742005,0.83142168,117490.0,117480.0,0.20784694]
[1755207742227,0.20856252,117490.0,117480.0,0.20784694]
[1755207742461,0.40056252,117490.0,117480.0,0.20684694]
[1755207742686,0.10056252,117490.0,117480.0,0.92311495]
[1755207742898,0.23985405,117490.0,117480.0,0.92311495]
[1755207743119,0.10556252,117490.0,117480.0,0.92211495]
[1755207743333,0.008,117490.0,117480.0,0.92311495]
[1755207743781,0.01589627,117510.0,117500.0,0.17021276]
[1755207743994,0.16605627,117510.0,117500.0,0.89053077]
[1755207744847,0.0001478,117510.0,117500.0,0.89053077]
[1755207745054,0.16586847,117530.0,117520.0,0.17018379]
[1755207745256,0.25068252,117530.0,117520.0,0.21076379]
[1755207745463,0.35068252,117530.0,117520.0,0.21076379]
[1755207747216,0.25068252,117530.0,117520.0,0.21076379]
[1755207747855,0.25268252,117530.0,117520.0,0.21376379]
[1755207748055,0.16686847,117530.0,117520.0,0.8905018]
[1755207748260,0.16686847,117530.0,117520.0,0.21076379]
[1755207748261,0.16586847,117530.0,117520.0,0.21076379]
[1755207748469,0.15112,117530.0,117520.0,0.21476379]
[1755207748631,0.15112,117530.0,117520.0,0.21076379]
[1755207749077,0.15212,117530.0,117520.0,0.21476379]
[1755207749413,0.15012,117530.0,117520.0,0.21076379]
[1755207749614,0.15012,117530.0,117520.0,0.21576379]
[1755207749821,0.16683916,117530.0,117520.0,0.21576379]
[1755207750060,0.15112,117530.0,117520.0,0.21576379]
[1755207750460,0.15112,117530.0,117520.0,0.8955018]
[1755207750661,0.15112,117530.0,117520.0,0.8965018]
[1755207750864,0.16683916,117530.0,117520.0,0.18123379]
[1755207750990,0.18352308,117530.0,117520.0,0.18123379]
[1755207751206,0.47044713,117530.0,117520.0,0.17618379]
[1755207751626,0.47353713,117530.0,117520.0,0.17618379]
[1755207751845,0.64370644,117530.0,117520.0,0.17618379]
[1755207752221,0.64370644,117530.0,117520.0,0.006]
[1755207752430,1.34089347,117530.0,117520.0,0.006]
[1755207752623,6.57602374,117530.0,117520.0,0.006]
[1755207752828,6.69804374,117530.0,117520.0,0.006]
[1755207753229,6.69804374,117530.0,117520.0,0.005]
[1755207753438,6.67312256,117530.0,117520.0,0.005]
[1755207753871,0.4,117490.0,117480.0,0.21030902]
[1755207754067,0.4,117490.0,117480.0,0.21285906]
[1755207754068,0.8260251,117490.0,117480.0,0.21285906]
[1755207754764,0.75189321,117490.0,117480.0,0.21285906]
[1755207754960,0.75189321,117490.0,117480.0,0.21584906]
[1755207755376,0.75289321,117490.0,117480.0,0.22184906]
[1755207755973,0.75389321,117490.0,117480.0,0.22184906]
[1755207756592,0.75389321,117490.0,117480.0,0.22184906]
[1755207757406,0.75387711,117490.0,117480.0,0.22184906]
[1755207758019,0.35391711,117490.0,117480.0,0.90158707]
[1755207758222,0.25391711,117490.0,117480.0,0.90158707]
[1755207758842,0.25391711,117490.0,117480.0,0.22184906]
[1755207759055,0.16810306,117490.0,117480.0,0.22184906]
[1755207759267,0.1524,117490.0,117480.0,0.22184906]
[1755207759475,0.1524,117490.0,117480.0,0.90158707]
[1755207760088,0.001,117490.0,117480.0,1.08475707]
[1755207760302,0.02104109,117510.0,117500.0,0.17021276]
[1755207760516,0.25737514,117510.0,117500.0,0.85206077]
[1755207760719,0.25737514,117510.0,117500.0,0.17546276]
[1755207760928,0.25737514,117510.0,117500.0,0.85520077]
[1755207761565,0.25837514,117510.0,117500.0,0.85820077]
[1755207761763,0.25837514,117510.0,117500.0,0.17846276]
[1755207762607,0.25837514,117510.0,117500.0,0.85820077]
[1755207762801,0.02204109,117510.0,117500.0,0.85820077]
[1755207763063,0.17316109,117510.0,117500.0,0.85820077]
[1755207763417,0.02204109,117510.0,117500.0,0.85820077]
[1755207763627,0.17308109,117510.0,117500.0,1.19920077]
[1755207763845,0.001,117510.0,117500.0,1.19920077]
[1755207764053,0.2,117540.0,117510.0,0.17019828]
[1755207764054,0.15092,117520.0,117510.0,0.17019828]
[1755207764269,0.35850563,117550.0,117540.0,0.17015484]
[1755207764483,0.503482,117550.0,117540.0,0.17015484]
[1755207764692,0.48777405,117550.0,117540.0,0.17015484]
[1755207764907,0.69093405,117550.0,117540.0,0.17015484]
[1755207765526,0.69108196,117550.0,117540.0,0.17015484]
[1755207766797,0.69308196,117550.0,117540.0,0.17015484]
[1755207767336,0.69508196,117550.0,117540.0,0.17015484]
[1755207768159,0.54168196,117550.0,117540.0,0.17226484]
[1755207768400,0.44168196,117550.0,117540.0,0.17226484]
[1755207768604,0.43968196,117550.0,117540.0,0.17226484]
[1755207768816,0.28896196,117550.0,117540.0,0.17540484]
[1755207769023,0.43972196,117550.0,117540.0,0.17540484]
[1755207769172,0.43772196,117550.0,117540.0,0.17540484]
[1755207769373,0.43972196,117550.0,117540.0,0.17540484]
[1755207769777,0.43572196,117550.0,117540.0,0.17540484]
[1755207769975,0.43572196,117550.0,117540.0,0.17640484]
[1755207770188,0.08496196,117550.0,117540.0,0.17640484]
[1755207770392,0.23556196,117550.0,117540.0,0.17640484]
[1755207772415,0.43556196,117550.0,117540.0,0.17640484]
[1755207772596,0.23540196,117550.0,117540.0,0.17640484]
[1755207774522,0.23740196,117550.0,117540.0,0.17326484]
[1755207774928,0.30230844,117550.0,117540.0,0.001]
[1755207775148,0.4,117520.0,117510.0,0.17870819]
[1755207775356,0.6578705,117520.0,117510.0,0.17870819]
[1755207775562,0.65787039,117520.0,117510.0,0.17870819]
[1755207775875,0.74269163,117520.0,117510.0,0.17870819]
[1755207776513,0.74069163,117520.0,117510.0,0.18170819]
[1755207776851,1.01087542,117520.0,117510.0,0.17319828]
[1755207777077,0.84069163,117520.0,117510.0,0.17319828]
[1755207777284,0.84069163,117520.0,117510.0,0.17119828]
[1755207777668,0.84069163,117520.0,117510.0,0.17219828]
[1755207777861,0.84069163,117520.0,117510.0,0.17119828]
[1755207778525,0.84069163,117520.0,117510.0,0.17019828]
[1755207779314,0.84269163,117520.0,117510.0,0.17019828]
[1755207779497,0.84369163,117520.0,117510.0,0.17019828]
[1755207779700,0.84569163,117520.0,117510.0,0.17019828]
[1755207781826,1.01587542,117520.0,117510.0,0.17019828]
[1755207782052,1.01587542,117520.0,117500.0,0.17021276]
[1755207782284,0.08481405,117510.0,117500.0,0.17021276]
[1755207782539,0.19330615,117510.0,117500.0,0.17021276]
[1755207782760,0.20904249,117510.0,117500.0,0.17021276]
[1755207782998,0.2,117500.0,117490.0,0.17872619]
[1755207783218,0.45407039,117500.0,117490.0,0.17872619]
[1755207783437,0.45407039,117500.0,117490.0,0.17921623]
[1755207783650,0.53889163,117500.0,117490.0,0.17921623]
[1755207784526,0.54205163,117500.0,117490.0,0.17921623]
[1755207784730,0.71226439,117500.0,117490.0,0.00049004]
[1755207785114,0.71226439,117500.0,117490.0,0.17071729]
[1755207785728,0.71226439,117500.0,117490.0,0.17171729]
[1755207786107,0.54205163,117500.0,117490.0,0.17171729]
[1755207786784,0.55077128,117500.0,117490.0,0.17271729]
[1755207786990,0.72098404,117500.0,117490.0,0.00249004]
[1755207787877,0.72098404,117500.0,117490.0,0.00149004]
[1755207788558,0.72098404,117500.0,117490.0,0.17171729]
[1755207788772,0.82098404,117500.0,117490.0,0.17171729]
[1755207788975,0.82098404,117500.0,117490.0,0.17071729]
[1755207789412,0.81782404,117500.0,117490.0,0.17071729]
[1755207789620,0.64761128,117500.0,117490.0,0.17071729]
[1755207789927,0.64661128,117500.0,117490.0,0.17600729]
[1755207790124,0.56179004,117500.0,117490.0,0.17600729]
[1755207790320,0.33673405,117500.0,117490.0,0.17600729]
[1755207790524,0.23673405,117500.0,117490.0,0.17600729]
[1755207791179,0.08581405,117500.0,117490.0,0.17600729]
[1755207791362,0.23673405,117500.0,117490.0,0.8937353]
[1755207791565,0.15192,117500.0,117490.0,0.8937353]
[1755207791987,0.15092,117500.0,117490.0,0.8937353]
[1755207792190,0.2,117520.0,117510.0,0.17019828]
[1755207792498,0.56298932,117530.0,117520.0,0.17018379]
[1755207792690,0.78701506,117530.0,117520.0,0.17228379]
[1755207792890,0.78913506,117530.0,117520.0,0.17228379]
[1755207793443,0.93985506,117530.0,117520.0,0.17228379]
[1755207794578,0.91638513,117530.0,117520.0,0.17547379]
[1755207794787,0.76506513,117530.0,117520.0,0.17547379]
[1755207795008,0.75851581,117530.0,117520.0,0.17018379]
[1755207795240,0.76720504,117530.0,117520.0,0.17018379]
[1755207795491,0.77020504,117530.0,117520.0,0.17228379]
[1755207795688,0.60887581,117530.0,117520.0,0.17547379]
[1755207795901,0.75931581,117530.0,117520.0,0.17547379]
[1755207796321,0.74357405,117530.0,117520.0,0.17547379]
[1755207796746,0.74057405,117530.0,117520.0,0.17547379]
[1755207796955,0.74157405,117530.0,117520.0,0.17547379]
[1755207797165,0.81661138,117530.0,117520.0,0.17547379]
[1755207797374,0.81561138,117530.0,117520.0,0.17547379]
[1755207797590,0.81661138,117530.0,117520.0,0.17547379]
[1755207798032,0.81561138,117530.0,117520.0,0.17547379]
[1755207798250,0.81774138,117530.0,117520.0,0.17228379]
[1755207798698,0.81874138,117530.0,117520.0,0.17228379]
[1755207799749,0.82172138,117530.0,117520.0,0.17018379]
[1755207800617,1.02172138,117530.0,117520.0,0.17018379]
[1755207800768,1.19189069,117530.0,117520.0,0.17018379]
[1755207800961,1.02172138,117530.0,117520.0,0.17018379]
[1755207802196,1.19189069,117530.0,117520.0,0.17018379]
[1755207804299,1.20766713,117530.0,117510.0,0.17019828]
[1755207804592,0.08481405,117520.0,117510.0,0.17019828]
[1755207804818,0.13645993,117520.0,117510.0,0.17019828]
[1755207805298,0.13645993,117520.0,117510.0,0.17229828]
[1755207805807,0.13645993,117520.0,117510.0,0.17081828]
[1755207806380,0.13645993,117520.0,117510.0,0.16871828]
[1755207806626,0.30664372,117520.0,117510.0,0.16871828]
[1755207806813,0.13943993,117520.0,117510.0,0.16871828]
[1755207807199,0.28481405,117520.0,117510.0,0.17400828]
[1755207807426,0.08481405,117520.0,117510.0,0.17400828]
[1755207807649,0.23517405,117520.0,117510.0,0.17400828]
[1755207808555,0.15036,117520.0,117510.0,0.17400828]
[1755207810102,0.20532,117530.0,117520.0,0.17018379]
[1755207810324,0.44021405,117530.0,117520.0,0.17547379]
[1755207810554,0.45262604,117530.0,117520.0,0.17547379]
[1755207810761,0.44021405,117530.0,117520.0,0.17547379]
[1755207811197,0.43921405,117530.0,117520.0,0.17547379]
[1755207812891,0.20432,117530.0,117520.0,0.17547379]
[1755207813146,0.35432,117530.0,117520.0,0.17547379]
[1755207813767,0.35432,117530.0,117520.0,0.51547379]
[1755207815121,0.239752,117530.0,117520.0,0.51547379]
[1755207815363,0.389752,117530.0,117520.0,0.51547379]
[1755207815885,0.185432,117530.0,117520.0,0.51547379]
[1755207816256,0.15,117530.0,117520.0,0.51547379]
[1755207817282,0.35298,117550.0,117540.0,0.17015484]
[1755207817471,0.68970405,117550.0,117540.0,0.17015484]
[1755207818559,0.69085196,117550.0,117540.0,0.17015484]
[1755207818767,0.69385196,117550.0,117540.0,0.17015484]
[1755207819114,0.7786732,117550.0,117540.0,0.17015484]
[1755207819358,0.34091196,117550.0,117540.0,0.17015484]
[1755207819564,0.49087196,117550.0,117540.0,0.17219484]
[1755207819778,0.34091196,117550.0,117540.0,0.17219484]
[1755207820148,0.33892196,117550.0,117540.0,0.17522484]
[1755207820279,0.18796196,117550.0,117540.0,0.17522484]
[1755207820484,0.33792196,117550.0,117540.0,0.17522484]
[1755207820723,0.33792196,117550.0,117540.0,0.17015484]
[1755207820724,0.08991196,117550.0,117540.0,0.17015484]
[1755207820987,0.33987196,117550.0,117540.0,0.17219484]
[1755207821188,0.41754898,117550.0,117540.0,0.17219484]
[1755207821398,0.41854898,117550.0,117540.0,0.17219484]
[1755207821597,0.41754898,117550.0,117540.0,0.17219484]
[1755207822742,0.33787196,117550.0,117540.0,0.17219484]
[1755207822976,0.10214791,117550.0,117540.0,0.51522484]
[1755207823212,0.15210791,117550.0,117540.0,0.51522484]
[1755207823447,0.15110791,117550.0,117540.0,0.51522484]
[1755207823653,0.15210791,117550.0,117540.0,0.51522484]
[1755207824066,0.15110791,117550.0,117540.0,0.51522484]
[1755207824341,0.15010791,117550.0,117540.0,0.51522484]
[1755207824847,0.17189249,117550.0,117540.0,0.17522484]
[1755207825516,0.15010791,117550.0,117540.0,0.17522484]
[1755207828148,0.15010791,117550.0,117540.0,1.0941867]
[1755207828353,0.15205791,117550.0,117540.0,0.51219484]
[1755207828594,0.15205791,117550.0,117540.0,0.7491167]
[1755207828831,0.15205791,117550.0,117540.0,0.7511567]
[1755207829035,0.15205791,117550.0,117540.0,0.7541867]
[1755207829234,0.15205791,117550.0,117540.0,0.17522484]
[1755207829554,0.21210566,117550.0,117540.0,0.17522484]
[1755207830782,0.21532566,117550.0,117540.0,0.17015484]
[1755207831056,0.21532566,117550.0,117530.0,0.58199186]
[1755207831270,0.08481405,117540.0,117500.0,0.15852673]
[1755207831513,0.34992,117530.0,117520.0,0.58199186]
[1755207831718,0.34992,117530.0,117520.0,0.58403186]
[1755207833036,0.34992,117530.0,117520.0,0.58603186]